[Event "*** Titled Tuesday Blitz"]
[Site "Chess.com"]
[Date "2019.03.05"]
[Round "10"]
[White "Supernotar"]
[Black "Cryptochess"]
[Result "1/2-1/2"]
[WhiteElo "2523"]
[BlackElo "2547"]
[TimeControl "180+2"]
[EndTime "15:31:49 PST"]
[Termination "Game drawn by stalemate"]

1. d4 {[%clk 0:02:59.8]} 1... d6 {[%clk 0:02:59.9]} 2. c4 {[%clk 0:03:00.5]}
2... e5 {[%clk 0:03:00.9]} 3. Nc3 {[%clk 0:03:01.4]} 3... exd4 {[%clk
0:02:51.5]} 4. Qxd4 {[%clk 0:03:02.1]} 4... Nc6 {[%clk 0:02:53.1]} 5. Qd2 {[%clk
0:03:03]} 5... Nf6 {[%clk 0:02:52.6]} 6. b3 {[%clk 0:03:03.9]} 6... g6 {[%clk
0:02:52.9]} 7. Bb2 {[%clk 0:03:04.8]} 7... Bg7 {[%clk 0:02:54.5]} 8. g3 {[%clk
0:03:06]} 8... O-O {[%clk 0:02:56]} 9. Bg2 {[%clk 0:03:06.9]} 9... Re8 {[%clk
0:02:57.8]} 10. Nh3 {[%clk 0:03:08]} 10... Bf5 {[%clk 0:02:55.8]} 11. Nf4 {[%clk
0:03:08.4]} 11... Ne4 {[%clk 0:02:50.8]} 12. Nxe4 {[%clk 0:02:38.8]} 12... Bxe4
{[%clk 0:02:47.1]} 13. Bxe4 {[%clk 0:02:34.3]} 13... Rxe4 {[%clk 0:02:49]} 14.
Bxg7 {[%clk 0:02:31.1]} 14... Kxg7 {[%clk 0:02:49.5]} 15. O-O {[%clk 0:02:28.4]}
15... Qe7 {[%clk 0:02:31.1]} 16. f3 {[%clk 0:02:17.5]} 16... Re5 {[%clk
0:02:25]} 17. e4 {[%clk 0:02:09.4]} 17... Re8 {[%clk 0:02:24.7]} 18. Qc3 {[%clk
0:02:06]} 18... f6 {[%clk 0:02:16.6]} 19. Nd5 {[%clk 0:02:05.4]} 19... Qf7
{[%clk 0:02:17.6]} 20. Rae1 {[%clk 0:01:53.2]} 20... Nb8 {[%clk 0:02:11.9]} 21.
Qd4 {[%clk 0:01:45.8]} 21... a6 {[%clk 0:02:04.1]} 22. f4 {[%clk 0:01:23]} 22...
c5 {[%clk 0:01:47.5]} 23. Qd3 {[%clk 0:01:09.4]} 23... R5e6 {[%clk 0:01:48.1]}
24. f5 {[%clk 0:00:48.5]} 24... gxf5 {[%clk 0:01:48.5]} 25. Rxf5 {[%clk
0:00:48.2]} 25... Nc6 {[%clk 0:01:36]} 26. Nf4 {[%clk 0:00:42]} 26... Re5 {[%clk
0:01:30.8]} 27. Nh5+ {[%clk 0:00:42]} 27... Kh8 {[%clk 0:01:30.5]} 28. Ref1
{[%clk 0:00:18.1]} 28... Nd4 {[%clk 0:01:20.9]} 29. Rxe5 {[%clk 0:00:14.7]}
29... dxe5 {[%clk 0:01:02.7]} 30. Nxf6 {[%clk 0:00:15.3]} 30... Rf8 {[%clk
0:01:04.1]} 31. Qe3 {[%clk 0:00:11.3]} 31... Qg6 {[%clk 0:00:58.8]} 32. Nd5
{[%clk 0:00:10.1]} 32... Rxf1+ {[%clk 0:00:50.5]} 33. Kxf1 {[%clk 0:00:11.5]}
33... Qg4 {[%clk 0:00:51]} 34. Kg2 {[%clk 0:00:11]} 34... Ne6 {[%clk 0:00:45.4]}
35. Qf3 {[%clk 0:00:06.6]} 35... Qg6 {[%clk 0:00:22.6]} 36. Qf5 {[%clk
0:00:06.8]} 36... Qxf5 {[%clk 0:00:07.5]} 37. exf5 {[%clk 0:00:08.2]} 37... Nd4
{[%clk 0:00:09.4]} 38. g4 {[%clk 0:00:09.6]} 38... Kg7 {[%clk 0:00:10.5]} 39.
Kf2 {[%clk 0:00:08.8]} 39... h5 {[%clk 0:00:11.8]} 40. h3 {[%clk 0:00:10.1]}
40... Kh6 {[%clk 0:00:12.9]} 41. Kg3 {[%clk 0:00:09.9]} 41... hxg4 {[%clk
0:00:14]} 42. hxg4 {[%clk 0:00:11.1]} 42... Kg5 {[%clk 0:00:15.6]} 43. Ne3
{[%clk 0:00:10.7]} 43... e4 {[%clk 0:00:15.6]} 44. Nd5 {[%clk 0:00:10.1]} 44...
Ne2+ {[%clk 0:00:16.5]} 45. Kf2 {[%clk 0:00:11]} 45... Nd4 {[%clk 0:00:15.5]}
46. Kg3 {[%clk 0:00:12]} 46... Ne2+ {[%clk 0:00:16.6]} 47. Kh3 {[%clk
0:00:12.1]} 47... Ng1+ {[%clk 0:00:15.1]} 48. Kg2 {[%clk 0:00:12.4]} 48... Ne2
{[%clk 0:00:16.4]} 49. f6 {[%clk 0:00:13.9]} 49... Nd4 {[%clk 0:00:16.2]} 50.
Kg3 {[%clk 0:00:11.8]} 50... Ne6 {[%clk 0:00:17.6]} 51. a3 {[%clk 0:00:10.6]}
51... e3 {[%clk 0:00:17.7]} 52. Kf3 {[%clk 0:00:11.3]} 52... e2 {[%clk
0:00:18.3]} 53. Kxe2 {[%clk 0:00:12.1]} 53... Kxg4 {[%clk 0:00:19.9]} 54. Ke3
{[%clk 0:00:11.8]} 54... Kf5 {[%clk 0:00:21.3]} 55. Kd3 {[%clk 0:00:10.5]} 55...
Ke5 {[%clk 0:00:22.6]} 56. b4 {[%clk 0:00:11.4]} 56... cxb4 {[%clk 0:00:08]} 57.
axb4 {[%clk 0:00:12.5]} 57... Ng5 {[%clk 0:00:08.8]} 58. Kc3 {[%clk 0:00:12.1]}
58... Ke6 {[%clk 0:00:10.2]} 59. Kd4 {[%clk 0:00:12.9]} 59... Kd6 {[%clk
0:00:10.1]} 60. c5+ {[%clk 0:00:12.4]} 60... Ke6 {[%clk 0:00:11.5]} 61. Kc4
{[%clk 0:00:12.6]} 61... Nf7 {[%clk 0:00:12.6]} 62. Kd4 {[%clk 0:00:13.2]} 62...
Ng5 {[%clk 0:00:13.1]} 63. Kc4 {[%clk 0:00:14.3]} 63... Ne4 {[%clk 0:00:14.3]}
64. Kb3 {[%clk 0:00:12.6]} 64... Nxf6 {[%clk 0:00:11.6]} 65. Nxf6 {[%clk
0:00:08.5]} 65... Kxf6 {[%clk 0:00:13.5]} 66. Ka4 {[%clk 0:00:09.3]} 66... Ke6
{[%clk 0:00:14.9]} 67. Ka5 {[%clk 0:00:10.9]} 67... Kd7 {[%clk 0:00:15.9]} 68.
Kb6 {[%clk 0:00:12.2]} 68... Kc8 {[%clk 0:00:17.6]} 69. c6 {[%clk 0:00:11.3]}
69... bxc6 {[%clk 0:00:19.1]} 70. Kxc6 {[%clk 0:00:07.2]} 70... a5 {[%clk
0:00:20.5]} 71. bxa5 {[%clk 0:00:04]} 71... Kb8 {[%clk 0:00:21.4]} 72. Kb6
{[%clk 0:00:05.1]} 72... Ka8 {[%clk 0:00:23.3]} 73. a6 {[%clk 0:00:06.5]} 73...
Kb8 {[%clk 0:00:25.2]} 74. a7+ {[%clk 0:00:07.7]} 74... Ka8 {[%clk 0:00:27.1]}
75. Ka6 {[%clk 0:00:08.8]} 1/2-1/2

[Event "*** Titled Tuesday Blitz"]
[Site "Chess.com"]
[Date "2019.03.05"]
[Round "10"]
[White "joppie2"]
[Black "vugarrasulov"]
[Result "0-1"]
[WhiteElo "2791"]
[BlackElo "2784"]
[TimeControl "180+2"]
[EndTime "15:31:52 PST"]
[Termination "vugarrasulov won by resignation"]

1. e4 {[%clk 0:03:01.9]} 1... e5 {[%clk 0:03:00.1]} 2. Nf3 {[%clk 0:03:03.3]}
2... Nc6 {[%clk 0:03:01.3]} 3. Bc4 {[%clk 0:03:04.9]} 3... Bc5 {[%clk
0:03:01.3]} 4. c3 {[%clk 0:03:06.4]} 4... Nf6 {[%clk 0:03:02.1]} 5. d3 {[%clk
0:03:08]} 5... O-O {[%clk 0:03:02.1]} 6. O-O {[%clk 0:03:08.7]} 6... d6 {[%clk
0:03:01.3]} 7. Re1 {[%clk 0:03:08.2]} 7... a6 {[%clk 0:03:00]} 8. a4 {[%clk
0:03:09]} 8... Ba7 {[%clk 0:02:59.1]} 9. h3 {[%clk 0:03:10.4]} 9... Ne7 {[%clk
0:03:00.1]} 10. Nbd2 {[%clk 0:03:10.8]} 10... Ng6 {[%clk 0:03:01]} 11. d4 {[%clk
0:03:12.3]} 11... exd4 {[%clk 0:02:57.3]} 12. cxd4 {[%clk 0:03:12.2]} 12... d5
{[%clk 0:02:58.6]} 13. exd5 {[%clk 0:03:10.3]} 13... Nxd5 {[%clk 0:03:00.5]} 14.
Ne4 {[%clk 0:03:08.2]} 14... c6 {[%clk 0:02:56]} 15. Bd2 {[%clk 0:03:00.2]}
15... h6 {[%clk 0:02:53.4]} 16. Qb3 {[%clk 0:02:59.6]} 16... Nh4 {[%clk
0:02:39.6]} 17. Nc5 {[%clk 0:02:37.6]} 17... Nxf3+ {[%clk 0:02:26.2]} 18. Qxf3
{[%clk 0:02:37.1]} 18... Nb6 {[%clk 0:02:21.9]} 19. Bb3 {[%clk 0:02:34.5]} 19...
Qxd4 {[%clk 0:02:15.4]} 20. Bxf7+ {[%clk 0:01:51.8]} 20... Kh8 {[%clk
0:02:14.8]} 21. Be3 {[%clk 0:01:24.6]} 21... Qd6 {[%clk 0:02:03.3]} 22. Qh5
{[%clk 0:01:19.2]} 22... Nd5 {[%clk 0:01:54.1]} 23. Ne4 {[%clk 0:01:20.1]} 23...
Qd7 {[%clk 0:01:37.5]} 24. Bxa7 {[%clk 0:01:13.9]} 24... Qxf7 {[%clk 0:01:22.3]}
25. Qxf7 {[%clk 0:01:14.1]} 25... Rxf7 {[%clk 0:01:24.2]} 26. Bd4 {[%clk
0:01:13.9]} 26... Kh7 {[%clk 0:01:18.8]} 27. a5 {[%clk 0:01:13.3]} 27... Nb4
{[%clk 0:01:09.6]} 28. Re2 {[%clk 0:00:59.9]} 28... Rd7 {[%clk 0:00:59.6]} 29.
Bc3 {[%clk 0:00:58.6]} 29... Nd5 {[%clk 0:01:00.6]} 30. Bd2 {[%clk 0:00:47.7]}
30... Re7 {[%clk 0:00:58.7]} 31. Rae1 {[%clk 0:00:48.7]} 31... Rf7 {[%clk
0:00:44.1]} 32. Nd6 {[%clk 0:00:45.1]} 32... Rd7 {[%clk 0:00:45]} 33. Nc4 {[%clk
0:00:45.9]} 33... Rd8 {[%clk 0:00:41.2]} 34. Nb6 {[%clk 0:00:40]} 34... Nxb6
{[%clk 0:00:39.7]} 35. axb6 {[%clk 0:00:41.9]} 35... Bf5 {[%clk 0:00:40.3]} 36.
Bc3 {[%clk 0:00:39.7]} 36... Rd7 {[%clk 0:00:40]} 37. Re7 {[%clk 0:00:40.9]}
37... Rad8 {[%clk 0:00:41.1]} 38. Bxg7 {[%clk 0:00:40.5]} 38... Rxe7 {[%clk
0:00:39.8]} 39. Rxe7 {[%clk 0:00:42.4]} 39... Rd7 {[%clk 0:00:40]} 40. Rxd7
{[%clk 0:00:43.7]} 40... Bxd7 {[%clk 0:00:41.9]} 41. Bd4 {[%clk 0:00:43.6]}
41... Kg6 {[%clk 0:00:42.9]} 42. f3 {[%clk 0:00:44.6]} 42... h5 {[%clk
0:00:38.9]} 43. Kf2 {[%clk 0:00:45.1]} 43... Kf5 {[%clk 0:00:37.1]} 44. g4+
{[%clk 0:00:40.5]} 44... hxg4 {[%clk 0:00:39]} 45. hxg4+ {[%clk 0:00:42.1]}
45... Ke6 {[%clk 0:00:40.5]} 46. Kg3 {[%clk 0:00:36.2]} 46... Kd5 {[%clk
0:00:41.5]} 47. Be3 {[%clk 0:00:35.3]} 47... c5 {[%clk 0:00:33.4]} 48. Kf4
{[%clk 0:00:31.7]} 48... c4 {[%clk 0:00:32.2]} 49. Kg5 {[%clk 0:00:30.8]} 49...
a5 {[%clk 0:00:31.2]} 50. Bd2 {[%clk 0:00:25.9]} 50... a4 {[%clk 0:00:29.9]} 51.
Kf6 {[%clk 0:00:22.9]} 51... Kd4 {[%clk 0:00:27.9]} 52. g5 {[%clk 0:00:23.2]}
52... Bc6 {[%clk 0:00:25.9]} 53. f4 {[%clk 0:00:21.4]} 53... Kd3 {[%clk
0:00:26.8]} 54. Bb4 {[%clk 0:00:19.4]} 54... Kc2 {[%clk 0:00:27.2]} 55. Ba3
{[%clk 0:00:20.6]} 55... Kb3 {[%clk 0:00:27.5]} 56. g6 {[%clk 0:00:18.1]} 56...
c3 {[%clk 0:00:28.7]} 57. Ke5 {[%clk 0:00:06.6]} 57... c2 {[%clk 0:00:29.5]} 58.
g7 {[%clk 0:00:07]} 58... Bd5 {[%clk 0:00:28.6]} 59. Kxd5 {[%clk 0:00:03.2]}
59... c1=Q {[%clk 0:00:29.7]} 60. Ke6 {[%clk 0:00:05.1]} 60... Qxf4 {[%clk
0:00:27.5]} 61. Ke7 {[%clk 0:00:03.7]} 61... Qg5+ {[%clk 0:00:26.7]} 62. Kf7
{[%clk 0:00:04.9]} 62... Qf5+ {[%clk 0:00:27.7]} 63. Kg8 {[%clk 0:00:05.5]}
63... Kc4 {[%clk 0:00:27.2]} 64. Kh8 {[%clk 0:00:06.9]} 64... Qh5+ {[%clk
0:00:28.1]} 65. Kg8 {[%clk 0:00:08.4]} 65... Kd5 {[%clk 0:00:29.4]} 66. Kf8
{[%clk 0:00:09.8]} 66... Qf5+ {[%clk 0:00:30.6]} 67. Ke7 {[%clk 0:00:09.9]}
67... Qg6 {[%clk 0:00:31.7]} 68. Kf8 {[%clk 0:00:10.4]} 68... Qf6+ {[%clk
0:00:32.8]} 69. Kg8 {[%clk 0:00:12]} 69... Ke6 {[%clk 0:00:34.1]} 70. Kh7 {[%clk
0:00:13.3]} 70... Qf5+ {[%clk 0:00:34.8]} 71. Kh8 {[%clk 0:00:12.6]} 71... Qh5+
{[%clk 0:00:33.7]} 72. Kg8 {[%clk 0:00:14]} 72... Kf6 {[%clk 0:00:32.6]} 73. Bf8
{[%clk 0:00:15.2]} 73... Kg6 {[%clk 0:00:32.2]} 0-1

[Event "*** Titled Tuesday Blitz"]
[Site "Chess.com"]
[Date "2019.03.05"]
[Round "10"]
[White "saraswathii"]
[Black "tteshan"]
[Result "1-0"]
[WhiteElo "2273"]
[BlackElo "2196"]
[TimeControl "180+2"]
[EndTime "15:32:02 PST"]
[Termination "saraswathii won by resignation"]

1. d4 {[%clk 0:03:01.9]} 1... d5 {[%clk 0:02:59.3]} 2. Bf4 {[%clk 0:03:02.9]}
2... Nf6 {[%clk 0:02:57.9]} 3. e3 {[%clk 0:02:59.1]} 3... Bf5 {[%clk 0:02:52.1]}
4. Bd3 {[%clk 0:02:59.2]} 4... Bg6 {[%clk 0:02:51.1]} 5. c4 {[%clk 0:02:59.5]}
5... e6 {[%clk 0:02:49.4]} 6. Nc3 {[%clk 0:02:57.9]} 6... dxc4 {[%clk
0:02:45.8]} 7. Bxc4 {[%clk 0:02:58.4]} 7... Bd6 {[%clk 0:02:47.2]} 8. Bg3 {[%clk
0:02:54.9]} 8... O-O {[%clk 0:02:47]} 9. Nf3 {[%clk 0:02:54.8]} 9... a6 {[%clk
0:02:44.1]} 10. a4 {[%clk 0:02:53.4]} 10... Nc6 {[%clk 0:02:43.6]} 11. O-O
{[%clk 0:02:52.3]} 11... Qe7 {[%clk 0:02:37.8]} 12. Re1 {[%clk 0:02:47.1]} 12...
Rad8 {[%clk 0:02:35.5]} 13. Bh4 {[%clk 0:02:44.8]} 13... Bh5 {[%clk 0:02:16.6]}
14. Kh1 {[%clk 0:02:07.9]} 14... Bb4 {[%clk 0:01:55]} 15. Qc2 {[%clk 0:01:55.2]}
15... Bxc3 {[%clk 0:01:40.8]} 16. bxc3 {[%clk 0:01:49.8]} 16... Qd6 {[%clk
0:01:38.1]} 17. Rad1 {[%clk 0:01:31.7]} 17... Rde8 {[%clk 0:01:24.5]} 18. e4
{[%clk 0:01:20.4]} 18... Bxf3 {[%clk 0:01:05.8]} 19. gxf3 {[%clk 0:01:10.1]}
19... Qf4 {[%clk 0:01:04.4]} 20. Bg3 {[%clk 0:01:10.9]} 20... Qxf3+ {[%clk
0:01:03.4]} 21. Kg1 {[%clk 0:01:11.6]} 21... e5 {[%clk 0:00:46.9]} 22. d5 {[%clk
0:01:11.7]} 22... Na5 {[%clk 0:00:42.5]} 23. Bf1 {[%clk 0:01:05]} 23... Qg4
{[%clk 0:00:35.9]} 24. c4 {[%clk 0:01:00.3]} 24... Nh5 {[%clk 0:00:31.3]} 25.
Qc3 {[%clk 0:00:50.7]} 25... b6 {[%clk 0:00:24.7]} 26. d6 {[%clk 0:00:43.4]}
26... Nxg3 {[%clk 0:00:16.3]} 27. hxg3 {[%clk 0:00:38.5]} 27... cxd6 {[%clk
0:00:17.3]} 28. Rxd6 {[%clk 0:00:38.3]} 28... Re6 {[%clk 0:00:18.5]} 29. Rxe6
{[%clk 0:00:33.3]} 29... Qxe6 {[%clk 0:00:19.9]} 30. Rd1 {[%clk 0:00:23.2]}
30... Rc8 {[%clk 0:00:19.2]} 31. Rd5 {[%clk 0:00:21.4]} 31... Nb7 {[%clk
0:00:17.8]} 32. Rxe5 {[%clk 0:00:20.1]} 32... Qc6 {[%clk 0:00:16.9]} 33. Rd5
{[%clk 0:00:18.8]} 33... Nc5 {[%clk 0:00:17.8]} 34. a5 {[%clk 0:00:19]} 34... h6
{[%clk 0:00:18.3]} 35. axb6 {[%clk 0:00:18.3]} 35... Qxb6 {[%clk 0:00:19.4]} 36.
Qd4 {[%clk 0:00:19.1]} 36... Qc6 {[%clk 0:00:12]} 37. Bg2 {[%clk 0:00:15.9]}
37... Ne6 {[%clk 0:00:11.8]} 38. Qe3 {[%clk 0:00:12]} 38... Qxc4 {[%clk
0:00:11.7]} 39. Bf1 {[%clk 0:00:13.2]} 39... Qc1 {[%clk 0:00:10.7]} 40. Qxc1
{[%clk 0:00:13.2]} 40... Rxc1 {[%clk 0:00:12.6]} 41. Ra5 {[%clk 0:00:14.5]}
41... Nc7 {[%clk 0:00:13]} 42. Kg2 {[%clk 0:00:14.9]} 42... Rc6 {[%clk 0:00:14]}
43. Be2 {[%clk 0:00:15.6]} 43... Rb6 {[%clk 0:00:14.9]} 44. f4 {[%clk
0:00:16.4]} 44... Kf8 {[%clk 0:00:16.1]} 45. e5 {[%clk 0:00:17.6]} 45... Ke7
{[%clk 0:00:17.3]} 46. Kf3 {[%clk 0:00:19.1]} 46... Kd7 {[%clk 0:00:18]} 47. Rc5
{[%clk 0:00:19.6]} 47... Nb5 {[%clk 0:00:18.4]} 48. Bc4 {[%clk 0:00:19.9]} 48...
Nd4+ {[%clk 0:00:19.1]} 49. Ke4 {[%clk 0:00:19.5]} 49... Ne6 {[%clk 0:00:20.4]}
50. Rd5+ {[%clk 0:00:20.8]} 50... Ke7 {[%clk 0:00:20.7]} 51. Ra5 {[%clk
0:00:20.6]} 51... Nc7 {[%clk 0:00:20.9]} 52. Rc5 {[%clk 0:00:20.6]} 52... Nb5
{[%clk 0:00:21.5]} 53. f5 {[%clk 0:00:18.2]} 53... h5 {[%clk 0:00:10.9]} 54. Bd3
{[%clk 0:00:16.4]} 54... g6 {[%clk 0:00:11.7]} 55. f6+ {[%clk 0:00:17]} 55...
Kd7 {[%clk 0:00:08.3]} 56. Bc4 {[%clk 0:00:17.4]} 56... Nc3+ {[%clk 0:00:06.2]}
57. Kd3 {[%clk 0:00:16.7]} 57... Nb5 {[%clk 0:00:06.8]} 58. Bxf7 {[%clk
0:00:16.7]} 58... Rb8 {[%clk 0:00:06.9]} 59. e6+ {[%clk 0:00:17.5]} 59... Kd6
{[%clk 0:00:07.9]} 60. Rc4 {[%clk 0:00:16.8]} 60... Nc7 {[%clk 0:00:06.8]} 61.
Rxc7 {[%clk 0:00:13.5]} 61... Kxc7 {[%clk 0:00:07.5]} 62. e7 {[%clk 0:00:14.8]}
62... Kd7 {[%clk 0:00:08.8]} 63. Bxg6 {[%clk 0:00:15.9]} 63... a5 {[%clk
0:00:09.1]} 64. Bxh5 {[%clk 0:00:15.6]} 64... a4 {[%clk 0:00:10.3]} 65. e8=Q+
{[%clk 0:00:14.4]} 65... Rxe8 {[%clk 0:00:10.7]} 66. Bxe8+ {[%clk 0:00:15.8]}
66... Kxe8 {[%clk 0:00:12.6]} 67. g4 {[%clk 0:00:17]} 67... a3 {[%clk
0:00:13.9]} 68. Kc2 {[%clk 0:00:17.5]} 68... a2 {[%clk 0:00:15.3]} 69. Kb2
{[%clk 0:00:18.6]} 69... Kf7 {[%clk 0:00:16.6]} 70. g5 {[%clk 0:00:19.4]} 70...
Kg6 {[%clk 0:00:17.3]} 71. Kxa2 {[%clk 0:00:20.5]} 71... Kxg5 {[%clk 0:00:17.6]}
72. f7 {[%clk 0:00:21.5]} 1-0

[Event "*** Titled Tuesday Blitz"]
[Site "Chess.com"]
[Date "2019.03.05"]
[Round "10"]
[White "SantoBlue"]
[Black "DrMelekess"]
[Result "1-0"]
[WhiteElo "2735"]
[BlackElo "2698"]
[TimeControl "180+2"]
[EndTime "15:32:06 PST"]
[Termination "SantoBlue won by checkmate"]

1. c4 {[%clk 0:03:01.9]} 1... e5 {[%clk 0:02:59.1]} 2. d3 {[%clk 0:03:03]} 2...
Nf6 {[%clk 0:02:58.9]} 3. Nf3 {[%clk 0:03:04]} 3... Bb4+ {[%clk 0:02:57]} 4.
Nbd2 {[%clk 0:03:04.6]} 4... e4 {[%clk 0:02:44]} 5. dxe4 {[%clk 0:03:04]} 5...
Nxe4 {[%clk 0:02:45.2]} 6. a3 {[%clk 0:03:05.5]} 6... Nxd2 {[%clk 0:02:45.6]} 7.
Bxd2 {[%clk 0:03:05.6]} 7... Bxd2+ {[%clk 0:02:46]} 8. Qxd2 {[%clk 0:03:07.5]}
8... Qf6 {[%clk 0:02:41.9]} 9. e3 {[%clk 0:03:07.4]} 9... d6 {[%clk 0:02:41.9]}
10. Be2 {[%clk 0:03:08.3]} 10... O-O {[%clk 0:02:42.5]} 11. O-O {[%clk
0:03:08.8]} 11... Nc6 {[%clk 0:02:43.5]} 12. b4 {[%clk 0:03:09.9]} 12... Bf5
{[%clk 0:02:30.4]} 13. Rac1 {[%clk 0:03:10.4]} 13... Rad8 {[%clk 0:02:30]} 14.
Rfd1 {[%clk 0:03:11.4]} 14... h6 {[%clk 0:02:29.1]} 15. Nd4 {[%clk 0:03:12.1]}
15... Nxd4 {[%clk 0:02:26.2]} 16. Qxd4 {[%clk 0:03:13.2]} 16... Qxd4 {[%clk
0:02:26.8]} 17. Rxd4 {[%clk 0:03:15.1]} 17... Rfe8 {[%clk 0:02:09.9]} 18. g4
{[%clk 0:03:08.8]} 18... Bc8 {[%clk 0:01:48.5]} 19. h4 {[%clk 0:03:08.3]} 19...
Kf8 {[%clk 0:01:49]} 20. Kh2 {[%clk 0:03:08.8]} 20... c5 {[%clk 0:01:47.1]} 21.
Rd2 {[%clk 0:03:00.8]} 21... Be6 {[%clk 0:01:37.2]} 22. Kg3 {[%clk 0:03:01.2]}
22... Rd7 {[%clk 0:01:26.8]} 23. Rcd1 {[%clk 0:02:59.5]} 23... Red8 {[%clk
0:00:46.2]} 24. f4 {[%clk 0:03:00.3]} 24... f5 {[%clk 0:00:47.5]} 25. g5 {[%clk
0:02:58.1]} 25... Ke7 {[%clk 0:00:46.3]} 26. Bf1 {[%clk 0:02:52.4]} 26... Rc8
{[%clk 0:00:40.9]} 27. b5 {[%clk 0:02:49]} 27... Rcd8 {[%clk 0:00:36]} 28. a4
{[%clk 0:02:50.3]} 28... d5 {[%clk 0:00:33]} 29. cxd5 {[%clk 0:02:51.7]} 29...
Rxd5 {[%clk 0:00:34.8]} 30. Rxd5 {[%clk 0:02:53.4]} 30... Rxd5 {[%clk
0:00:36.4]} 31. Rc1 {[%clk 0:02:55]} 31... b6 {[%clk 0:00:30]} 32. a5 {[%clk
0:02:45.6]} 32... Rd2 {[%clk 0:00:30.7]} 33. Ra1 {[%clk 0:02:44.9]} 33... Ra2
{[%clk 0:00:25.3]} 34. axb6 {[%clk 0:02:46.3]} 34... axb6 {[%clk 0:00:24.6]} 35.
Rd1 {[%clk 0:02:47.8]} 35... Rb2 {[%clk 0:00:17.5]} 36. Ra1 {[%clk 0:02:47.4]}
36... Ra2 {[%clk 0:00:13.3]} 37. Rd1 {[%clk 0:02:48.8]} 37... c4 {[%clk
0:00:13.2]} 38. Rc1 {[%clk 0:02:49.4]} 38... Ra4 {[%clk 0:00:12.8]} 39. Kf3
{[%clk 0:02:49.2]} 39... Bd5+ {[%clk 0:00:14]} 40. Kg3 {[%clk 0:02:49.9]} 40...
Kd6 {[%clk 0:00:15.1]} 41. Bh3 {[%clk 0:02:49]} 41... Be4 {[%clk 0:00:14.9]} 42.
Rd1+ {[%clk 0:02:48.2]} 42... Ke7 {[%clk 0:00:15.5]} 43. Rd4 {[%clk 0:02:46.4]}
43... Bd3 {[%clk 0:00:11.9]} 44. h5 {[%clk 0:02:39.9]} 44... Ra5 {[%clk
0:00:06.2]} 45. e4 {[%clk 0:02:40.9]} 45... Bxe4 {[%clk 0:00:06.1]} 46. Rxc4
{[%clk 0:02:40.9]} 46... Rxb5 {[%clk 0:00:07.2]} 47. Rc7+ {[%clk 0:02:41.9]}
47... Kf8 {[%clk 0:00:07.7]} 48. g6 {[%clk 0:02:40.1]} 48... Rb3+ {[%clk
0:00:07.2]} 49. Kh4 {[%clk 0:02:41.5]} 49... Rd3 {[%clk 0:00:06.3]} 50. Rf7+
{[%clk 0:02:42.1]} 50... Kg8 {[%clk 0:00:06.8]} 51. Rc7 {[%clk 0:02:43.7]} 51...
Rd8 {[%clk 0:00:07.6]} 52. Bf1 {[%clk 0:02:44.3]} 52... Bd5 {[%clk 0:00:06]} 53.
Bd3 {[%clk 0:02:42.7]} 53... Be4 {[%clk 0:00:05.2]} 54. Bc4+ {[%clk 0:02:43.4]}
54... Kh8 {[%clk 0:00:05.9]} 55. Kg3 {[%clk 0:02:43.7]} 55... Rb8 {[%clk
0:00:06.3]} 56. Kf2 {[%clk 0:02:43.3]} 56... Re8 {[%clk 0:00:06.6]} 57. Bb5
{[%clk 0:02:43.5]} 57... Rd8 {[%clk 0:00:07.5]} 58. Ke3 {[%clk 0:02:43.8]} 58...
Ra8 {[%clk 0:00:08.1]} 59. Be2 {[%clk 0:02:42.3]} 59... Rd8 {[%clk 0:00:07.6]}
60. Bc4 {[%clk 0:02:40.9]} 60... Ra8 {[%clk 0:00:07.6]} 61. Rd7 {[%clk
0:02:39.2]} 61... Rc8 {[%clk 0:00:08.1]} 62. Be2 {[%clk 0:02:40.1]} 62... Re8
{[%clk 0:00:08.7]} 63. Kd4 {[%clk 0:02:37.5]} 63... Bc6 {[%clk 0:00:09.5]} 64.
Rc7 {[%clk 0:02:38.9]} 64... Be4 {[%clk 0:00:06.6]} 65. Bd1 {[%clk 0:02:32.3]}
65... Rd8+ {[%clk 0:00:07]} 66. Ke5 {[%clk 0:02:33.3]} 66... b5 {[%clk
0:00:06.2]} 67. Ke6 {[%clk 0:02:31.8]} 67... b4 {[%clk 0:00:05.8]} 68. Ke7
{[%clk 0:02:33.3]} 68... Rb8 {[%clk 0:00:06.1]} 69. Rd7 {[%clk 0:02:29.2]} 69...
Bc6 {[%clk 0:00:05.4]} 70. Rd6 {[%clk 0:02:28.1]} 70... Be4 {[%clk 0:00:05.4]}
71. Kf7 {[%clk 0:02:23]} 71... Bb1 {[%clk 0:00:05.8]} 72. Ra6 {[%clk 0:02:20.2]}
72... Bd3 {[%clk 0:00:05]} 73. Ra7 {[%clk 0:02:21]} 73... Bc4+ {[%clk
0:00:05.5]} 74. Ke7 {[%clk 0:02:21.6]} 74... b3 {[%clk 0:00:07.4]} 75. Ra5
{[%clk 0:02:14.5]} 75... b2 {[%clk 0:00:06.7]} 76. Bc2 {[%clk 0:02:14.8]} 76...
b1=Q {[%clk 0:00:07.8]} 77. Bxb1 {[%clk 0:02:16.3]} 77... Rxb1 {[%clk
0:00:09.7]} 78. Rxf5 {[%clk 0:02:18]} 78... Bg8 {[%clk 0:00:10.6]} 79. Rf8
{[%clk 0:02:08.4]} 79... Re1+ {[%clk 0:00:10.5]} 80. Kd6 {[%clk 0:02:08.1]}
80... Rh1 {[%clk 0:00:09.4]} 81. Rf5 {[%clk 0:02:09]} 81... Re1 {[%clk
0:00:10.1]} 82. Rc5 {[%clk 0:02:02.1]} 82... Re6+ {[%clk 0:00:08.5]} 83. Kd7
{[%clk 0:02:02.9]} 83... Re4 {[%clk 0:00:08]} 84. f5 {[%clk 0:01:59.4]} 84...
Rh4 {[%clk 0:00:08.8]} 85. Ke7 {[%clk 0:01:54.6]} 85... Rxh5 {[%clk 0:00:07]}
86. Kf8 {[%clk 0:01:55.6]} 86... Rh1 {[%clk 0:00:05.7]} 87. f6 {[%clk 0:01:50]}
87... gxf6 {[%clk 0:00:07.6]} 88. Rc7 {[%clk 0:01:51.4]} 88... Rg1 {[%clk
0:00:07.1]} 89. Rg7 {[%clk 0:01:51.9]} 89... f5 {[%clk 0:00:06.7]} 90. Rxg8#
{[%clk 0:01:52.7]} 1-0